Cogmind - Beta 9 @@@ ROGUE MODE // 2019.10.22 @ 23:05:53 Player: BOBIT Result: Self-destructed Performance ------------- Evolutions (1) 500 Regions Visited (4) 800 Robots Destroyed (17) 85 Value Destroyed (454) 454 Prototype IDs (0) 0 Alien Tech Used (0) 0 Bonus (-20) -20 TOTAL SCORE: 1819 Bonus ------- Friendly Fire -20 Cogmind --------- Core Integrity 293/400 Matter 4/300 Energy 97/100 System Corruption 0% Temperature Cool (9) Location -9/Storage Parts ------- Power (1) Propulsion (2) Armored Treads Advanced Treads Utility (3) Improved Heat Sink Light Armor Plating Light Armor Plating Weapon (3) Heavy EM Pulse Gun Inventory (4) Improved Heat Sink High-capacity Battery (400) Transmission Jammer Rocket Launcher Peak State ------------ Power Light Nuclear Core Propulsion Armored Treads Advanced Treads Utility Improved Heat Sink Advanced Terrain Scanner Transmission Jammer Weapon Particle Gun Heavy Assault Rifle Datajack Inventory Improved Heat Sink High-capacity Battery [Rating: 23] Favorites ----------- Power Light Nuclear Core Engine Ion Engine Power Core Light Nuclear Core Propulsion Armored Treads Treads Armored Treads Wheel Compact Wheel Utility Improved Heat Sink Device Improved Heat Sink Storage Small Storage Unit Protection Light Armor Plating Weapon Grenade Launcher Energy Gun Particle Gun Ballistic Gun Heavy Assault Rifle Ballistic Cannon Light Cannon Launcher Grenade Launcher Special Melee Weapon Datajack Build | -11 -10 -10 -9 -9 ------- Run | Scr Mat Min Mat Sto Slots Evolved 2 | . . . 2 . Power . | . . . . . Propulsion . | . . . . . Utility 1 | . . . 1 . Weapon 1 | . . . 1 . Parts Attached 28 | 6 2 7 8 5 Power 3 | 1 . 2 . . Engine 1 | 1 . . . . Core 2 | . . 2 . . Reactor . | . . . . . Propulsion 4 | 2 . 2 . . Treads 2 | . . 2 . . Leg . | . . . . . Wheel 2 | 2 . . . . Hover . | . . . . . Flight . | . . . . . Utility 8 | 1 . 2 5 . Device 4 | . . 2 2 . Storage 1 | 1 . . . . Processor . | . . . . . Hackware . | . . . . . Protection 3 | . . . 3 . Artifact . | . . . . . Weapon 13 | 2 2 1 3 5 Energy Gun 3 | . . 1 1 1 Energy Cannon . | . . . . . Ballistic Gun 3 | 2 . . 1 . Ballistic Cannon 1 | . 1 . . . Launcher 5 | . 1 . . 4 Special Weapon . | . . . . . Impact Weapon . | . . . . . Slashing Weapon . | . . . . . Piercing Weapon . | . . . . . Special Melee Weapon 1 | . . . 1 . Unidentified Prototypes . | . . . . . Parts Lost 2 | . . . . 2 Power 1 | . . . . 1 Propulsion . | . . . . . Utility . | . . . . . Weapon 1 | . . . . 1 Highest Loss Streak 2 | . . . . 2 Average Slot Usage (%) 90 | . 84 96 86 87 Engine 2 | . 14 . . . Core 8 | . . 13 11 4 Treads 17 | . . 20 22 22 Wheel 7 | . 28 7 . . Device 17 | . . 23 27 11 Storage 3 | . 14 3 . . Protection 6 | . . . 5 22 Energy Gun 5 | . . 3 13 8 Ballistic Gun 3 | . 7 . 4 7 Ballistic Cannon 5 | . 7 10 . . Launcher 9 | . 12 10 . 12 Naked Turns . | . . . . . Heaviest Build 22 | 13 15 16 21 22 Greatest Support 42 | 32 32 42 42 42 Greatest Overweight (x) . | . . . . . Average Overweight (x) . | . . . . . Largest Inventory Capacity 6 | 6 6 6 4 4 Average Capacity 4 | 5 6 4 4 4 Most Carried 6 | 6 6 6 4 4 Average Carried 4 | 3 5 3 3 3 Final Capacity 4 | . . . . 4 Final Carried 4 | . . . . 4 Class Distribution -------------------- 75% | Mutant 11% | Scavenger-Tank 6% | Bomber 6% | Scavenger-Bomber Dominant Class ---------------- Mutant | -10/Materials Mutant | -10/Mines Mutant | -9/Materials Bomber | -9/Storage Resources | -11 -10 -10 -9 -9 ----------- Run | Scr Mat Min Mat Sto Matter Collected 505 | 168 118 126 30 63 Remotely . | . . . . . Salvage Created 505 | . 10 129 43 323 Parts 23 | . 2 5 1 15 Haulers Intercepted 1 | . . . . 1 Recyclers Shooed . | . . . . . Parts Field Recycled . | . . . . . Retrieved Matter . | . . . . . Parts Self-Destructed . | . . . . . Prevented . | . . . . . Kills | -11 -10 -10 -9 -9 ------- Run | Scr Mat Min Mat Sto Combat Hostiles Destroyed 12 | . . 3 1 8 Guns 5 | . . . 1 4 Cannons 3 | . . 3 . . AOE 3 | . . . . 3 Classes Destroyed 8 | . 1 1 1 5 Worker 1 | . . . . 1 Hauler 1 | . . . . 1 Recycler 1 | . . . . 1 Operator 1 | . 1 . . . Watcher 1 | . . . . 1 Swarmer 3 | . . . . 3 Grunt 5 | . . 3 . 2 Sentry 4 | . . . 1 3 Best Kill Streak 6 | . 1 2 1 6 Combat Bots Only 3 | . . 2 1 3 Max Kills in Single Turn 3 | . 1 1 1 3 Gunslinging . | . . . . . Exploded 1 | . . . . 1 Melee . | . . . . . Uniques/NPCs Destroyed . | . . . . . Combat | -11 -10 -10 -9 -9 -------- Run | Scr Mat Min Mat Sto Damage Taken 1046 | . . 198 149 699 Core 134 | . . 27 40 67 Absorbed by Shields . | . . . . . Core Remaining (%) 94 | 100 . 89 . . Volleys Fired 55 | . 1 14 7 33 Largest 3 | . 2 1 1 3 Hottest 121 | . 40 35 65 121 Shots Fired 75 | . 2 14 7 52 Gun 43 | . 2 . 7 34 Cannon 14 | . . 14 . . Launcher 18 | . . . . 18 Special . | . . . . . Kinetic 41 | . 2 14 . 25 Thermal 16 | . . . 7 9 Explosive 18 | . . . . 18 Electromagnetic . | . . . . . Robot Hit Streak 11 | . 1 5 7 11 Robot Miss Streak 4 | . . 4 . 4 Penetration Max . | . . . . . Secondary Targets . | . . . . . Shots Hit Robots 42 | . 1 7 8 26 Core Hits 27 | . 1 5 2 19 Critical Hits 1 | . . 1 . . Critical Kills 1 | . . 1 . . Critical Parts Destroyed . | . . . . . Melee Attacks 1 | . . . 1 . Impact . | . . . . . Slashing . | . . . . . Piercing . | . . . . . Sneak Attacks 1 | . . . 1 . Combat Hostiles . | . . . . . Follow-up Attacks . | . . . . . Damage Inflicted 1146 | . 15 156 108 867 Guns 369 | . 15 . 108 246 Cannons 155 | . . 155 . . Explosions 619 | . . . . 619 Melee . | . . . . . Ramming 3 | . . 1 . 2 Kinetic 313 | . 15 155 . 143 Thermal 211 | . . . 108 103 Explosive 619 | . . . . 619 Electromagnetic . | . . . . . Impact . | . . . . . Slashing . | . . . . . Piercing . | . . . . . Highest Corruption . | . . . . . Average Corruption . | . . . . . Corruption Purged . | . . . . . Overload Shots . | . . . . . Overflow Damage . | . . . . . Projectiles . | . . . . . Explosions . | . . . . . Melee . | . . . . . Knockbacks . | . . . . . Impact . | . . . . . Kinetic . | . . . . . Secondary . | . . . . . Self-Inflicted Damage 54 | . . . . 54 Shots 2 | . . . . 2 Rammed 3 | . . 2 . 1 Targets Rammed 3 | . . 2 . 1 Kicked . | . . . . . Crushed . | . . . . . Highest Temperature 126 | . . 2 6 126 Average Temperature 48 | . . 2 4 60 Received Heat Transfer 333 | . . 114 60 159 Siege Activations . | . . . . . Robots Corrupted . | . . . . . Combat Hostiles . | . . . . . Parts Fried 1 | . . . . 1 Impact Corruptions 1 | . . . . 1 Robots Melted . | . . . . . Combat Hostiles . | . . . . . Parts Melted 3 | . . . 3 . Heat Transferred 481 | . . . 259 222 Parts Sabotaged . | . . . . . Parts Stolen . | . . . . . Parts Stripped . | . . . . . Power Chain Reactions . | . . . . . Missiles Intercepted . | . . . . . Alert | -11 -10 -10 -9 -9 ------- Run | Scr Mat Min Mat Sto Peak Influence 305 | . 5 81 76 305 Average Influence 70 | . 4 68 54 150 Maximum Alert Level 1 | . . . . 1 Low Security (%) 95 | . . . . . Level 1 4 | . . . . . Level 2 . | . . . . . Level 3 . | . . . . . Level 4 . | . . . . . Level 5 . | . . . . . High Security . | . . . . . Max Security . | . . . . . Squads Dispatched 6 | . 2 1 1 2 Investigation 2 | . . 1 . 1 Extermination . | . . . . . Reinforcement 4 | . 2 . 1 1 Assault . | . . . . . Garrison . | . . . . . Intercept . | . . . . . Construction Impeded 1 | . . . . 1 Haulers Reinforced . | . . . . . Stealth | -11 -10 -10 -9 -9 --------- Run | Scr Mat Min Mat Sto Distress Signals 1 | . . . . 1 Communications Jammed . | . . . . . Distress Signals . | . . . . . Times Spotted 21 | . 1 6 2 12 Peak Tracking Total 5 | . . 2 1 5 Tactical Retreats 2 | . . 1 . 1 Traps | -11 -10 -10 -9 -9 ------- Run | Scr Mat Min Mat Sto Traps Triggered 1 | . . . . 1 Indirectly . | . . . . . Trap Hack Attempts . | . . . . . Triggered . | . . . . . Disarmed . | . . . . . Reprogrammed . | . . . . . Reused . | . . . . . Traps Extracted . | . . . . . Installed . | . . . . . Triggered . | . . . . . Machines | -11 -10 -10 -9 -9 ---------- Run | Scr Mat Min Mat Sto Machines Disabled 2 | . . . . 2 Max in Single Turn 1 | . . . . 1 Machines Sabotaged . | . . . . . Garrisons Compromised . | . . . . . Overloaded Fab Kills . | . . . . . Fab Network Shutdowns . | . . . . . Hacking | -11 -10 -10 -9 -9 --------- Run | Scr Mat Min Mat Sto Machines Accessed 3 | . 1 1 . 1 Terminals 2 | . 1 . . 1 Fabricators . | . . . . . Repair Stations . | . . . . . Recycling Units . | . . . . . Scanalyzers . | . . . . . Garrison Access . | . . . . . Total Hacks 4 | . 1 1 . 2 Successful 3 | . 1 1 . 1 Failed 1 | . . . . 1 Catastrophic . | . . . . . Database Lockouts . | . . . . . Manual 1 | . 1 . . . Terminals 3 | . 1 . . 2 Fabricators . | . . . . . Repair Stations . | . . . . . Recycling Units . | . . . . . Scanalyzers . | . . . . . Garrison Access . | . . . . . Terminal Hacks 2 | . . 1 . 1 Open Door 2 | . . 1 . 1 Fabricator Hacks . | . . . . . Repair Station Hacks . | . . . . . Recycling Unit Hacks . | . . . . . Scanalyzer . | . . . . . Garrison Access Hacks . | . . . . . Unauthorized Hacks 2 | . 2 . . . Terminals 1 | . 1 . . . Assimilate 1 | . 1 . . . Fabricators . | . . . . . Repair Stations . | . . . . . Recycling Units . | . . . . . Scanalyzers . | . . . . . Garrison Access . | . . . . . Data Cores Recovered . | . . . . . Used . | . . . . . Hacking Detections 2 | . 1 . . 1 Full Trace Events . | . . . . . Feedback Events . | . . . . . Feedback Blocked . | . . . . . Robot Schematics Acquired . | . . . . . Robots Built . | . . . . . Matter . | . . . . . Time . | . . . . . Total Robot Build Rating . | . . . . . Part Schematics Acquired . | . . . . . Parts Built . | . . . . . Matter . | . . . . . Time . | . . . . . Total Part Build Rating . | . . . . . Parts Repaired . | . . . . . Time . | . . . . . Parts Recycled . | . . . . . Recycled Matter . | . . . . . Retrieved Matter . | . . . . . Retrieved Components . | . . . . . Parts Scanalyzed . | . . . . . Part Schematics Acquired . | . . . . . Parts Damaged . | . . . . . Bothacking | -11 -10 -10 -9 -9 ------------ Run | Scr Mat Min Mat Sto Used RIF Installer . | . . . . . Robots Hacked 1 | . . . 1 . Non-combat 1 | . . . 1 . Combat . | . . . . . Robot Hacks Applied 1 | . . . 1 . no_distress 1 | . . . 1 . Relay Couplers Released . | . . . . . Robots Rewired . | . . . . . Allies Hacked . | . . . . . Hacks Repelled . | . . . . . Allies | -11 -10 -10 -9 -9 -------- Run | Scr Mat Min Mat Sto Total Allies . | . . . . . Largest Group . | . . . . . Highest-Rated Group . | . . . . . Highest-Rated Ally . | . . . . . Total Orders . | . . . . . Ally Attacks . | . . . . . Total Damage . | . . . . . Kills . | . . . . . Allies Corrupted . | . . . . . Allies Melted . | . . . . . Intel | -11 -10 -10 -9 -9 ------- Run | Scr Mat Min Mat Sto Robot Analysis Total . | . . . . . Derelict Logs Recovered . | . . . . . Drone Launches . | . . . . . Drone Recoveries . | . . . . . Exploration | -11 -10 -10 -9 -9 ------------- Run | Scr Mat Min Mat Sto Turns Passed 967 | 69 156 369 146 227 Spaces Moved 589 | 56 148 224 75 86 Core 3 | 3 . . . . Treads 321 | . . 160 75 86 Legs . | . . . . . Wheels 265 | 53 148 64 . . Hover . | . . . . . Flight . | . . . . . Fastest Speed 50 | 50 100 100 157 157 Average Speed 130 | 97 100 140 157 157 Slowest Speed 170 | 100 100 170 157 157 Overloaded Moves . | . . . . . Propulsion Burnouts . | . . . . . Robots Hopped . | . . . . . Cave-ins Triggered . | . . . . . Exploration Rate (%) 17 | 5 22 34 8 18 Regions Visited 4 Branch Regions 2 Pre-discovered Areas . | . . . . . Known Exits Taken . | . . . . . Unknown Exits Taken 4 | 1 1 1 1 . Scrap Searched 2 | . . 2 . . Spaces Dug . | . . . . . Terrain Destroyed 83 | . . . . 83 Melee . | . . . . . Projectile . | . . . . . AOE 83 | . . . . 83 Actions | -11 -10 -10 -9 -9 --------- Run | Scr Mat Min Mat Sto Total 716 | 67 154 267 95 133 Wait 2 | . . 2 . . Move 585 | 55 147 223 74 86 Hop . | . . . . . Pick Up 12 | 6 1 4 . 1 Fast Attach 25 | 6 2 7 5 5 Attach 2 | . . . 2 . Detach 5 | . . 2 3 . Swap 1 | . . . 1 . Drop 25 | . 3 13 2 7 Fire 55 | . 1 14 7 33 Melee 1 | . . . 1 . Ram 1 | . . 1 . . Kick . | . . . . . Crush 2 | . . 1 . 1 Escape Stasis . | . . . . . Rewire . | . . . . . Trap . | . . . . . Miscellaneous . | . . . . . Route ------- -11/Scrapyard -10/Materials (discovered 2 exits: [*Mat] / *Min) -10/Mines -9/Materials -9/Storage History --------- Turn | Location | Event 6 | -11/Scrapyard | Discovered new exit (range 15) 70 | -11/Scrapyard | Entered Materials 153 | -10/Materials | Met 8R-AWN 170 | -10/Materials | Discovered new exit (range 15) 185 | -10/Materials | Discovered new exit (range 15) 226 | -10/Materials | Entered Mines 227 | -10/Mines | Followed 8R-AWN into the Mines 230 | -10/Mines | Met a Derelict bent on vengeance 296 | -10/Mines | Met a Derelict shopkeep closing up shop 316 | -10/Mines | Build established: Mutant 586 | -10/Mines | Discovered new exit (range 8) 595 | -10/Mines | Entered Materials 595 | -9/Materials | Evolved 2 slots: Utility x1, Weapon x1 647 | -9/Materials | Discovered new exit (range 5) 741 | -9/Materials | Entered Storage 968 | -9/Storage | Self-destructed Last Messages --------------- 00941_ U-05 Engineer lays Concrete. 00946_ K-01 Serf collects debris. 00947_ The unstable cave ceiling collapses. 00947_ U-05 Engineer lays Concrete. 00948_ Dropped Mni. Grenade Launcher. 00949_ The unstable cave ceiling collapses. 00949_ Dropped Rocket Launcher. 00949_ U-05 Engineer lays Concrete. 00949_ Dropped Mni. Grenade Launcher. 00950_ K-01 Serf collects debris. 00950_ U-05 Engineer lays Concrete. 00951_ The unstable cave ceiling collapses. 00951_ Acquired Hvy. EM Pulse Gun. 00952_ U-05 Engineer lays Concrete. 00953_ The unstable cave ceiling collapses. 00953_ U-05 Engineer lays Concrete. 00958_ K-01 Serf collects debris. 00958_ U-05 Engineer lays Concrete. 00960_ Acquired 4 matter. 00966_ The unstable cave ceiling collapses. Map ----- +----------------------------------------------------+ | ?????????????????????????????????????????????????? | | ?????????????????????????????????????????????????? | | ?????????????????????????????????????????????????? | | ?????????????????????????????????????????????????? | | ?????????????????????????????????????????????????? | | ?????????????????????????????????????????????????? | | ?????????????????????????????????????????????????? | | ?????????????????????????????????????????????????? | | ?????????????????????????????????????????????????? | | ?????????????????????????????????????????????????? | | ?????????????????????????????????????????????????? | | ????????????????"????????????????????????????????? | | ?????????????# """ ??????????????????????????????? | | ?????????????# """ """???????????????????????????? | | ?????????????# ???????????????????????????? | | ?????????????## Y#########????????????????????? | | ?????????????# # #######??????????????? | | ?????????????## ???????????????? | | ?????????????## % k ????????????????? | | ?????????????# ! ??????????????????? | | ?????????????# =# ##??????????????????? | | ??????????????# # #??????????????????? | | ???????????????# # * #??????????????????? | | ???????????????# % #??????????????????? | | ???????????????# +??????????????????? | | ???????????????+ @== #??????????????????? | | ???????????????# # ][=/ #??????????????????? | | ???????????????# ?## ] = #??????????????????? | | ???????????????# ?# ] #??????????????????? | | ???????????????# ######Y#####??????????????????? | | ????????????#### # * +???????????????????? | | ????????????? # # a #???????????????????? | | ????????????? ?# #[ [ #???????????????????? | | ????????? ?? # # #???????????????????? | | ???????? ? # # [! #???????????????????? | | ???????? + + =%* ]#???????????????????? | | ???????? # = #???????????????????? | | ?????# " " # # ! #???????????????????? | | ??????? # # #######???????????????????? | | ??????# # # ######?????????????????????? | | ####### #= =] [#?????????????????????? | | % !%# #?????????????????????? | | +[ ]! ]#?????????????????????? | | # ######?????????????????????? | | ######## # #### #??????????????????????????? | | ???????####?##?# ####??????????????????????????? | | ???????????????####??????????????????????????????? | | ?????????????????????????????????????????????????? | | | | | +----------------------------------------------------+ Best States ------------- Heat Dissipation 42 Energy Generation 14 Energy Capacity 250 Matter Stores 300 Matter Capacity 300 Sight Range 16 Terrain Scan Range 20 Terrain Scan Density 10 Jamming Range 8 Armor Coverage 300 Evasion (%) 40 Recoil Reduction 2 Item Schematics ----------------- None Robot Schematics ------------------ None Fabricated ------------ Nothing Alien Tech Used ----------------- None Achievements -------------- True Hacker Challenges ------------ None Game ------ Seed GreatTachyonRedirector Manual? 0 Play Time 00:15:52 Cumulative 21.8 hours Start 2019.10.22 @ 22:51:03 End 2019.10.22 @ 23:05:53 Sessions 1 Manual Loads 0 Difficulty Rogue Special Mode None Game No. 54 Rogue 54 Adventurer 0 Explorer 0 Win Type - Total 0 Types 0/0/0/0/0/0/0 Lore% 16 Gallery% 32 Achievement% 22 Wizard Run 0 Options --------- ASCII 1 Keyboard 1 Movement Numpad Keybinds 0 Fullscreen 2 Font 18/TerminusBold Map View 76x50 Tactical HUD 1 Map Filters NONE Filters NONE Steam 1 RUN: 216b6fd8-b446-4a2a-be84-da0ea7433f0e